fUSD/lending_fUSD_20250105
["ID","MTS","AMOUNT","RATE_DAILY","PERIOD"]
[347729400,1736086239691,-500.0,8.219e-05,2]
[347729401,1736086239701,-500.0,8.219e-05,2]
[347729402,1736086239712,-1678.38,8.219e-05,2]
[347729403,1736086239722,-855.83,8.219e-05,2]
[347729404,1736086239731,-500.0,8.219e-05,2]
[347729405,1736086239740,-511.8,8.219e-05,2]
[347729406,1736086239750,-500.0,8.219e-05,2]
[347729407,1736086239759,-905.92,8.219e-05,2]
[347729408,1736086239768,-500.0,8.219e-05,2]
[347729409,1736086239777,-461.46699695,8.219e-05,2]
[347729410,1736086239787,-500.0,8.219e-05,2]
[347729411,1736086239796,-500.0,8.219e-05,2]
[347729412,1736086239805,-500.0,8.219e-05,2]
[347729413,1736086239888,-500.0,8.219e-05,2]
[347729414,1736086239897,-500.0,8.219e-05,2]
[347729415,1736086239907,-835.26,8.219e-05,2]
[347729416,1736086239916,-500.0,8.219e-05,2]
[347729417,1736086239925,-500.0,8.219e-05,2]
[347729418,1736086239934,-815.39,8.219e-05,2]
[347729419,1736086239943,-1035.87,8.219e-05,2]
[347729420,1736086239952,-500.0,8.219e-05,2]
[347729421,1736086239961,-500.0,8.219e-05,2]
[347729422,1736086239970,-919.05,8.219e-05,2]
[347729423,1736086239979,-521.7,8.219e-05,2]
[347729424,1736086239988,-632.46,8.219e-05,2]
[347729425,1736086239997,-500.0,8.219e-05,2]
[347729426,1736086240007,-1525.261953,8.219e-05,2]
[347729427,1736086240017,-500.0,8.219e-05,2]
[347729428,1736086240026,-500.0,8.219e-05,2]
[347729429,1736086240035,-500.0,8.219e-05,2]
[347729430,1736086240044,-500.0,8.219e-05,2]
[347729431,1736086240054,-500.0,8.219e-05,2]
[347729432,1736086240064,-500.0,8.219e-05,2]
[347729433,1736086240074,-500.0,8.219e-05,2]
[347729434,1736086240083,-517.08,8.219e-05,2]
[347729435,1736086240095,-932.91,8.219e-05,2]
[347729436,1736086240105,-500.0,8.219e-05,2]
[347729437,1736086240115,-153.754164,8.219e-05,2]
[347729438,1736086240124,-500.0,8.219e-05,2]
[347729439,1736086240133,-500.0,8.219e-05,2]
[347729440,1736086240142,-500.0,8.219e-05,2]
[347729441,1736086240152,-500.0,8.219e-05,2]
[347729442,1736086240162,-650.48,8.219e-05,2]
[347729443,1736086240171,-1005.75,8.219e-05,2]
[347729444,1736086240182,-500.0,8.219e-05,2]
[347729445,1736086240191,-500.0,8.219e-05,2]
[347729446,1736086240201,-155.826196,8.219e-05,2]
[347729447,1736086240211,-500.0,8.219e-05,2]
[347729448,1736086240220,-1429.58,8.219e-05,2]
[347729449,1736086240232,-1158.29,8.219e-05,2]
[347729450,1736086240241,-500.0,8.219e-05,2]
[347729451,1736086240251,-529.27,8.219e-05,2]
[347729452,1736086240260,-500.0,8.219e-05,2]
[347729453,1736086240271,-519.69,8.219e-05,2]
[347729454,1736086240281,-500.0,8.219e-05,2]
[347729455,1736086240290,-1200.34,8.219e-05,2]
[347729456,1736086240300,-2958.09,8.219e-05,2]
[347729457,1736086240311,-5860.52,8.219e-05,2]
[347729458,1736086240320,-1501.22,8.219e-05,2]
[347729459,1736086240330,-500.0,8.219e-05,2]
[347729460,1736086240340,-579.27,8.219e-05,2]
[347729461,1736086240350,-500.36122835,8.219e-05,2]
[347729463,1736086240359,-977.58,8.219e-05,2]
[347729465,1736086240369,-500.0,8.219e-05,2]
[347729466,1736086240379,-3536.32,8.219e-05,2]
[347729467,1736086240388,-500.0,8.219e-05,2]
[347729468,1736086240397,-500.0,8.219e-05,2]
[347729469,1736086240406,-3332.56,8.219e-05,2]
[347729470,1736086240415,-678.69,8.219e-05,2]
[347729471,1736086240425,-1935.77,8.219e-05,2]
[347729472,1736086240434,-500.0,8.219e-05,2]
[347729473,1736086240444,-628.69,8.219e-05,2]
[347729474,1736086240453,-500.0,8.219e-05,2]
[347729475,1736086240464,-500.0,8.219e-05,2]
[347729476,1736086240473,-500.0,8.219e-05,2]
[347729477,1736086240483,-500.0,8.219e-05,2]
[347729478,1736086240494,-500.0,8.219e-05,2]
[347729479,1736086240504,-504.51,8.219e-05,2]
[347729480,1736086240513,-500.0,8.219e-05,2]
[347729481,1736086240522,-879.4,8.219e-05,2]
[347729482,1736086240532,-500.0,8.219e-05,2]
[347729483,1736086240541,-500.0,8.219e-05,2]
[347729484,1736086240551,-1311.86,8.219e-05,2]
[347729485,1736086240560,-1630.51,8.219e-05,2]
[347729486,1736086240569,-519.6,8.219e-05,2]
[347729487,1736086240579,-500.0,8.219e-05,2]
[347729488,1736086240589,-500.0,8.219e-05,2]
[347729489,1736086240598,-9308.75,8.219e-05,2]
[347729490,1736086240607,-500.0,8.219e-05,2]
[347729491,1736086240617,-1213.07,8.219e-05,2]
[347729492,1736086240626,-500.0,8.219e-05,2]
[347729493,1736086240635,-500.0,8.219e-05,2]
[347729494,1736086240644,-442.51478924,8.219e-05,2]
[347729495,1736086240654,-3435.58,8.219e-05,2]
[347729496,1736086240663,-500.0,8.219e-05,2]
[347729497,1736086240673,-500.0,8.219e-05,2]
[347729498,1736086240682,-500.0,8.219e-05,2]
[347729499,1736086240691,-570.21,8.219e-05,2]
[347729500,1736086240700,-4669.0,8.219e-05,2]
[347729501,1736086240709,-500.0,8.219e-05,2]
[347729502,1736086240719,-500.0,8.219e-05,2]
[347729503,1736086240728,-1489.62,8.219e-05,2]
[347729504,1736086240737,-500.0,8.219e-05,2]
[347729505,1736086240746,-1597.97,8.219e-05,2]
[347729506,1736086240756,-5012.35,8.219e-05,2]
[347729507,1736086240765,-500.0,8.219e-05,2]
[347729508,1736086240775,-500.0,8.219e-05,2]
[347729509,1736086240784,-1263.16,8.219e-05,2]
[347729510,1736086240794,-500.0,8.219e-05,2]
[347729511,1736086240804,-500.0,8.219e-05,2]
[347729512,1736086240813,-500.0,8.219e-05,2]
[347729513,1736086240822,-500.0,8.219e-05,2]
[347729514,1736086240831,-500.0,8.219e-05,2]
[347729515,1736086240841,-500.0,8.219e-05,2]
[347729516,1736086240851,-2311.19,8.219e-05,2]
[347729518,1736086240860,-500.0,8.219e-05,2]
[347729520,1736086240870,-2864.48,8.219e-05,2]
[347729522,1736086240879,-500.0,8.219e-05,2]
[347729524,1736086240887,-150.0,8.219e-05,2]
[347729526,1736086240896,-1249.3,8.219e-05,2]
[347729528,1736086240905,-513.24,8.219e-05,2]
[347729530,1736086240914,-500.0,8.219e-05,2]
[347729532,1736086240923,-1964.09,8.219e-05,2]
[347729534,1736086240932,-2634.69,8.219e-05,2]
[347729536,1736086240942,-500.0,8.219e-05,2]
[347729538,1736086240951,-1657.78,8.219e-05,2]
[347729540,1736086240960,-500.0,8.219e-05,2]
[347729542,1736086240970,-574.02,8.219e-05,2]
[347729544,1736086240979,-500.0,8.219e-05,2]
[347729546,1736086240989,-5089.6,8.219e-05,2]
[347729548,1736086240998,-721.81,8.219e-05,2]
[347729550,1736086241007,-369.89529221,8.219e-05,2]
[347729552,1736086241016,-500.0,8.219e-05,2]
[347729554,1736086241025,-500.0,8.219e-05,2]
[347729556,1736086241034,-500.0,8.219e-05,2]
[347729558,1736086241043,-2656.05,8.219e-05,2]
[347729560,1736086241053,-500.0,8.219e-05,2]
[347729562,1736086241063,-500.0,8.219e-05,2]
[347729564,1736086241072,-500.0,8.219e-05,2]
[347729566,1736086241081,-16233.05,8.219e-05,2]
[347729568,1736086241091,-500.0,8.219e-05,2]
[347729570,1736086241100,-500.0,8.219e-05,2]
[347729572,1736086241109,-6311.87,8.219e-05,2]
[347729574,1736086241118,-500.0,8.219e-05,2]
[347729576,1736086241126,-3323.05,8.219e-05,2]
[347729578,1736086241135,-500.0,8.219e-05,2]
[347729580,1736086241145,-500.0,8.219e-05,2]
[347729582,1736086241154,-952.05,8.219e-05,2]
[347729584,1736086241164,-500.0,8.219e-05,2]
[347729586,1736086241173,-500.0,8.219e-05,2]
[347729588,1736086241183,-500.0,8.219e-05,2]
[347729590,1736086241192,-500.0,8.219e-05,2]
[347729592,1736086241200,-500.0,8.219e-05,2]
[347729594,1736086241209,-500.0,8.219e-05,2]
[347729596,1736086241219,-2832.75,8.219e-05,2]
[347729598,1736086241229,-500.0,8.219e-05,2]
[347729600,1736086241239,-500.0,8.219e-05,2]
[347729602,1736086241248,-1869.42,8.219e-05,2]
[347729604,1736086241257,-500.0,8.219e-05,2]
[347729606,1736086241266,-500.0,8.219e-05,2]
[347729608,1736086241277,-1239.18,8.219e-05,2]
[347729610,1736086241286,-500.0,8.219e-05,2]
[347729612,1736086241296,-994.54,8.219e-05,2]
[347729614,1736086241307,-500.0,8.219e-05,2]
[347729616,1736086241317,-500.65088403,8.219e-05,2]
[347729618,1736086241327,-500.0,8.219e-05,2]
[347729620,1736086241336,-1207.47,8.219e-05,2]
[347729622,1736086241346,-1009.28,8.219e-05,2]
[347729624,1736086241355,-500.0,8.219e-05,2]
[347729626,1736086241365,-500.0,8.219e-05,2]
[347729628,1736086241374,-198.64269522,8.219e-05,2]
[347729630,1736086241383,-500.0,8.219e-05,2]
[347729632,1736086241393,-6267.41,8.219e-05,2]
[347729634,1736086241402,-1569.79,8.219e-05,2]
[347729636,1736086241411,-1589.36,8.219e-05,2]
[347729638,1736086241420,-500.0,8.219e-05,2]
[347729640,1736086241430,-500.0,8.219e-05,2]
[347729642,1736086241439,-500.0,8.219e-05,2]
[347729644,1736086241448,-500.0,8.219e-05,2]
[347729646,1736086241457,-500.0,8.219e-05,2]
[347729647,1736086241467,-7016.37,8.219e-05,2]
[347729650,1736086241478,-2588.57,8.219e-05,2]
[347729651,1736086241487,-1024.17,8.219e-05,2]
[347729653,1736086241497,-896.58,8.219e-05,2]
[347729655,1736086241506,-500.0,8.219e-05,2]
[347729658,1736086241516,-4111.43,8.219e-05,2]
[347729659,1736086241525,-500.0,8.219e-05,2]
[347729661,1736086241534,-500.0,8.219e-05,2]
[347729663,1736086241543,-500.0,8.219e-05,2]
[347729665,1736086241552,-671.19,8.219e-05,2]
[347729668,1736086241562,-500.0,8.219e-05,2]
[347729669,1736086241572,-4240.05,8.219e-05,2]
[347729671,1736086241580,-929.79,8.219e-05,2]
[347729674,1736086241590,-500.0,8.219e-05,2]
[347729676,1736086241599,-500.0,8.219e-05,2]
[347729677,1736086241608,-308.33552318,8.219e-05,2]
[347729680,1736086241618,-605.42,8.219e-05,2]
[347729682,1736086241627,-7031.39,8.219e-05,2]
[347729684,1736086241636,-3907.13,8.219e-05,2]
[347729686,1736086241645,-500.41563858,8.219e-05,2]
[347729688,1736086241655,-500.0,8.219e-05,2]
[347729690,1736086241664,-500.0,8.219e-05,2]
[347729692,1736086241673,-500.0,8.219e-05,2]
[347729694,1736086241683,-500.0,8.219e-05,2]
[347729696,1736086241692,-500.0,8.219e-05,2]
[347729698,1736086241701,-500.0,8.219e-05,2]
[347729699,1736086241710,-500.0,8.219e-05,2]
[347729700,1736086241720,-790.23,8.219e-05,2]
[347729701,1736086241729,-500.0,8.219e-05,2]
[347729702,1736086241739,-500.0,8.219e-05,2]
[347729703,1736086241749,-2252.76,8.219e-05,2]
[347729704,1736086241757,-1387.02,8.219e-05,2]
[347729705,1736086241765,-500.0,8.219e-05,2]
[347729706,1736086241775,-823.31,8.219e-05,2]
[347729707,1736086241784,-500.0,8.219e-05,2]
[347729708,1736086241793,-500.0,8.219e-05,2]
[347729709,1736086241802,-2324.58,8.219e-05,2]
[347729710,1736086241811,-500.0,8.219e-05,2]
[347729711,1736086241820,-716.23,8.219e-05,2]
[347729712,1736086241830,-500.0,8.219e-05,2]
[347729713,1736086241839,-3251.01,8.219e-05,2]
[347729714,1736086241849,-500.0,8.219e-05,2]
[347729715,1736086241858,-500.0,8.219e-05,2]
[347729716,1736086241868,-1363.75,8.219e-05,2]
[347729717,1736086241877,-500.0,8.219e-05,2]
[347729718,1736086241887,-500.0,8.219e-05,2]
[347729719,1736086241896,-500.0,8.219e-05,2]
[347729720,1736086241905,-596.77,8.219e-05,2]
[347729721,1736086241915,-5143.92,8.219e-05,2]
[347729722,1736086241924,-500.0,8.219e-05,2]
[347729723,1736086241933,-1868.76,8.219e-05,2]
[347729724,1736086241943,-500.0,8.219e-05,2]
[347729725,1736086241952,-500.0,8.219e-05,2]
[347729726,1736086241961,-500.0,8.219e-05,2]
[347729727,1736086241971,-6239.8,8.219e-05,2]
[347729728,1736086241980,-1331.41,8.219e-05,2]
[347729729,1736086241989,-6109.07,8.219e-05,2]
[347729730,1736086241998,-500.0,8.219e-05,2]
[347729731,1736086242007,-500.0,8.219e-05,2]
[347729732,1736086242017,-500.0,8.219e-05,2]
[347729733,1736086242026,-8535.66,8.219e-05,2]
[347729734,1736086242035,-3488.16,8.219e-05,2]
[347729735,1736086242044,-2449.34,8.219e-05,2]
[347729736,1736086242054,-500.0,8.219e-05,2]
[347729737,1736086242064,-500.0,8.219e-05,2]
[347729738,1736086242074,-500.0,8.219e-05,2]
[347729739,1736086242083,-500.0,8.219e-05,2]
[347729740,1736086242092,-500.0,8.219e-05,2]
[347729741,1736086242102,-4269.26,8.219e-05,2]
[347729742,1736086242111,-7071.13,8.219e-05,2]
[347729743,1736086242120,-500.0,8.219e-05,2]
[347729744,1736086242130,-500.0,8.219e-05,2]
[347729745,1736086242139,-500.0,8.219e-05,2]
[347729746,1736086242148,-500.0,8.219e-05,2]
[347729747,1736086242158,-500.0,8.219e-05,2]
[347729748,1736086242167,-1810.81,8.219e-05,2]
[347729749,1736086242177,-2209.49,8.219e-05,2]
[347729750,1736086242186,-841.79,8.219e-05,2]
[347729751,1736086242196,-500.0,8.219e-05,2]
[347729752,1736086242205,-500.0,8.219e-05,2]
[347729753,1736086242215,-500.59535112,8.219e-05,2]
[347729754,1736086242224,-1541.47,8.219e-05,2]
[347729755,1736086242237,-500.0,8.219e-05,2]
[347729756,1736086242246,-3729.17,8.219e-05,2]
[347729757,1736086242255,-2379.7,8.219e-05,2]
[347729758,1736086242265,-1708.96,8.219e-05,2]
[347729759,1736086242275,-500.0,8.219e-05,2]
[347729760,1736086242284,-500.0,8.219e-05,2]
[347729761,1736086242295,-500.0,8.219e-05,2]
[347729762,1736086242305,-500.0,8.219e-05,2]
[347729763,1736086242316,-1654.18,8.219e-05,2]
[347729764,1736086242325,-510.60069867,8.219e-05,2]
[347729765,1736086242334,-10522.04,8.219e-05,2]
[347729766,1736086242344,-1819.97,8.219e-05,2]
[347729767,1736086242354,-2051.31,8.219e-05,2]
[347729768,1736086242363,-3465.08,8.219e-05,2]
[347729769,1736086242372,-321.1193767,8.219e-05,2]
[347729770,1736086242383,-4321.58,8.219e-05,2]
[347729771,1736086242392,-500.0,8.219e-05,2]
[347729772,1736086242402,-500.0,8.219e-05,2]
[347729773,1736086242411,-500.0,8.219e-05,2]
[347729774,1736086242420,-562.35,8.219e-05,2]
[347729775,1736086242430,-2042.12,8.219e-05,2]
[347729776,1736086242439,-500.0,8.219e-05,2]
[347729777,1736086242450,-500.0,8.219e-05,2]
[347729778,1736086242459,-777.63,8.219e-05,2]
[347729779,1736086242469,-500.0,8.219e-05,2]
[347729780,1736086242478,-500.0,8.219e-05,2]
[347729781,1736086242488,-500.0,8.219e-05,2]
[347729782,1736086242497,-500.0,8.219e-05,2]
[347729783,1736086242506,-945.76,8.219e-05,2]
[347729784,1736086242516,-500.0,8.219e-05,2]
[347729785,1736086242525,-1666.12,8.219e-05,2]
[347729786,1736086242535,-595.33,8.219e-05,2]
[347729787,1736086242545,-500.0,8.219e-05,2]
[347729788,1736086242554,-500.0,8.219e-05,2]
[347729789,1736086242563,-500.0,8.219e-05,2]
[347729790,1736086242572,-7347.35,8.219e-05,2]
[347729791,1736086242581,-2741.12,8.219e-05,2]
[347729792,1736086242591,-500.0,8.219e-05,2]
[347729793,1736086242601,-989.73,8.219e-05,2]
[347729794,1736086242610,-1040.91,8.219e-05,2]
[347729795,1736086242619,-702.43,8.219e-05,2]
[347729796,1736086242629,-2971.92,8.219e-05,2]
[347729797,1736086242639,-1063.03,8.219e-05,2]
[347729798,1736086242647,-804.87,8.219e-05,2]
[347729799,1736086242657,-500.0,8.219e-05,2]
[347729800,1736086242666,-500.0,8.219e-05,2]
[347729801,1736086242676,-500.0,8.219e-05,2]
[347729802,1736086242685,-2301.74,8.219e-05,2]
[347729803,1736086242695,-4392.68,8.219e-05,2]
[347729804,1736086242704,-500.0,8.219e-05,2]
[347729805,1736086242714,-500.0,8.219e-05,2]
[347729806,1736086242723,-500.0,8.219e-05,2]
[347729807,1736086242732,-798.46,8.219e-05,2]
[347729808,1736086242742,-1986.58,8.219e-05,2]
[347729809,1736086242752,-2929.94,8.219e-05,2]
[347729810,1736086242761,-500.0,8.219e-05,2]
[347729811,1736086242770,-500.0,8.219e-05,2]
[347729812,1736086242780,-899.63,8.219e-05,2]
[347729813,1736086242790,-500.0,8.219e-05,2]
[347729814,1736086242799,-500.0,8.219e-05,2]
[347729815,1736086242808,-500.0,8.219e-05,2]
[347729816,1736086242817,-2240.63,8.219e-05,2]
[347729817,1736086242827,-736.62,8.219e-05,2]
[347729818,1736086242837,-956.97,8.219e-05,2]
[347729819,1736086242848,-1666.12,8.219e-05,2]
[347729820,1736086242858,-500.0,8.219e-05,2]
[347729821,1736086242867,-3157.56,8.219e-05,2]
[347729822,1736086242877,-500.0,8.219e-05,2]
[347729823,1736086242887,-1129.82,8.219e-05,2]
[347729824,1736086242896,-500.0,8.219e-05,2]
[347729825,1736086242906,-500.0,8.219e-05,2]
[347729826,1736086242916,-500.0,8.219e-05,2]
[347729827,1736086242926,-1714.77,8.219e-05,2]
[347729828,1736086242934,-500.0,8.219e-05,2]
[347729829,1736086242944,-799.02,8.219e-05,2]
[347729830,1736086242954,-500.0,8.219e-05,2]
[347729831,1736086242963,-500.0,8.219e-05,2]
[347729832,1736086242973,-500.0,8.219e-05,2]
[347729833,1736086242982,-500.0,8.219e-05,2]
[347729834,1736086242991,-500.0,8.219e-05,2]
[347729835,1736086243001,-591.41,8.219e-05,2]
[347729836,1736086243011,-500.0,8.219e-05,2]
[347729837,1736086243020,-500.0,8.219e-05,2]
[347729838,1736086243030,-5906.8,8.219e-05,2]
[347729839,1736086243039,-500.0,8.219e-05,2]
[347729840,1736086243048,-1112.43,8.219e-05,2]
[347729841,1736086243058,-747.98,8.219e-05,2]
[347729842,1736086243067,-500.0,8.219e-05,2]
[347729843,1736086243077,-1925.38,8.219e-05,2]
[347729844,1736086243087,-500.0,8.219e-05,2]
[347729845,1736086243100,-1629.2,8.219e-05,2]
[347729846,1736086243109,-1977.81,8.219e-05,2]
[347729847,1736086243119,-1258.69,8.219e-05,2]
[347729848,1736086243128,-1195.92,8.219e-05,2]
[347729849,1736086243137,-1427.37,8.219e-05,2]
[347729850,1736086243147,-1000.0,8.219e-05,2]
[347729852,1736086243158,-1545.37,8.219e-05,2]
[347729853,1736086243167,-1026.54,8.219e-05,2]
[347729854,1736086243178,-150.0,8.219e-05,2]
[347729855,1736086243188,-5212.5572,8.219e-05,2]
[347729856,1736086243197,-150.0,8.221e-05,2]
[347729857,1736086243207,-150.0,8.235e-05,2]
[347729858,1736086243217,-150.0,8.25e-05,2]
[347729859,1736086243228,-150.0,8.26e-05,2]
[347729860,1736086243239,-150.0,8.264e-05,2]
[347729861,1736086243248,-150.0,8.274e-05,2]
[347729863,1736086243258,-150.0,8.278e-05,2]
[347729865,1736086243267,-5303.2008314,8.283e-05,2]
[347729866,1736086243278,-13187.1138382,8.283e-05,2]
[347729867,1736086243289,-449448.85496628,8.288e-05,2]
[347729868,1736086243298,-150.0,8.293e-05,2]
[347729869,1736086243309,-1113.0,8.3e-05,2]
[347729870,1736086243319,-150.0,8.306e-05,2]
[347729871,1736086243328,-150.0,8.307e-05,2]
[347729872,1736086243338,-150.0,8.322e-05,2]
[347729873,1736086243349,-150.0,8.329e-05,2]
[347729874,1736086243359,-150.0,8.336e-05,2]
[347729875,1736086243368,-150.0,8.35e-05,2]
[347729876,1736086243378,-150.0,8.352e-05,2]
[347729877,1736086243389,-150.0,8.365e-05,2]
[347729878,1736086243399,-150.0,8.379e-05,2]
[347729879,1736086243408,-150.0,8.384e-05,2]
[347729880,1736086243418,-150.0,8.393e-05,2]
[347729881,1736086243428,-150.0,8.398e-05,2]
[347729882,1736086243439,-150.0,8.408e-05,2]
[347729883,1736086243449,-150.0,8.422e-05,2]
[347729884,1736086243459,-150.0,8.437e-05,2]
[347729885,1736086243469,-150.0,8.438e-05,2]
[347729886,1736086243478,-150.0,8.444e-05,2]
[347729887,1736086243488,-150.0,8.451e-05,2]
[347729888,1736086243498,-1897.08440076,8.456e-05,2]
[347729889,1736086243506,-150.0,8.465e-05,2]
[347729890,1736086243516,-176.60213116,8.473e-05,2]
[347729891,1736086243525,-152.02144894,8.473e-05,2]
[347729892,1736086243535,-152.02144541,8.473e-05,2]
[347729893,1736086243545,-500.0,8.473e-05,2]
[347729894,1736086243554,-152.021447,8.473e-05,2]
[347729895,1736086243564,-152.02144415,8.473e-05,2]
[347729896,1736086243574,-152.02144588,8.473e-05,2]
[347729897,1736086243583,-151.02130488,8.473e-05,2]
[347729898,1736086243594,-160.02258052,8.473e-05,2]
[347729899,1736086243604,-152.02145385,8.473e-05,2]
[347729900,1736086243613,-150.9089772,8.473e-05,2]
[347729901,1736086243624,-152.02088746,8.473e-05,2]
[347729902,1736086243633,-152.02144748,8.473e-05,2]
[347729903,1736086243645,-152.02089255,8.473e-05,2]
[347729904,1736086243654,-152.02144566,8.473e-05,2]
[347729905,1736086243664,-160.25009431,8.473e-05,2]
[347729906,1736086243674,-152.02089,8.473e-05,2]
[347729907,1736086243685,-261.76650416,8.473e-05,2]
[347729908,1736086243694,-150.0,8.48e-05,2]
[347729909,1736086243704,-150.0,8.49e-05,2]
[347729910,1736086243714,-500.0,8.493e-05,2]
[347729911,1736086243724,-500.0,8.493e-05,2]
[347729912,1736086243734,-500.0,8.493e-05,2]
[347729913,1736086243744,-500.0,8.493e-05,2]
[347729914,1736086243754,-500.0,8.493e-05,2]
[347729915,1736086243764,-368.4030658,8.493e-05,2]
[347729916,1736086243774,-500.0,8.493e-05,2]
[347729917,1736086243784,-500.0,8.493e-05,2]
[347729918,1736086243794,-500.0,8.493e-05,2]
[347729919,1736086243804,-500.0,8.493e-05,2]
[347729921,1736086243814,-560.61097573,8.493e-05,2]
[347729922,1736086243824,-270.90015541,8.493e-05,2]
[347729924,1736086243834,-500.0,8.493e-05,2]
[347729926,1736086243846,-500.0,8.493e-05,2]
[347729927,1736086243855,-500.0,8.493e-05,2]
[347729929,1736086243865,-500.0,8.493e-05,2]
[347729930,1736086243875,-500.0,8.493e-05,2]
[347729931,1736086243885,-500.0,8.493e-05,2]
[347729932,1736086243895,-500.0,8.493e-05,2]
[347729933,1736086243904,-500.0,8.493e-05,2]
[347729934,1736086243914,-500.0,8.493e-05,2]
[347729935,1736086243923,-500.0,8.493e-05,2]
[347729936,1736086243934,-500.0,8.493e-05,2]
[347729937,1736086243948,-690.85,8.493e-05,2]
[347729938,1736086243959,-500.0,8.493e-05,2]
[347729939,1736086243969,-500.0,8.493e-05,2]
[347729940,1736086243979,-500.0,8.493e-05,2]
[347729941,1736086243989,-500.0,8.493e-05,2]
[347729942,1736086243999,-500.0,8.493e-05,2]
[347729943,1736086244009,-500.0,8.493e-05,2]
[347729944,1736086244019,-500.0,8.493e-05,2]
[347729945,1736086244028,-500.0,8.493e-05,2]
[347729946,1736086244038,-500.0,8.493e-05,2]
[347729947,1736086244049,-1085.7,8.493e-05,2]
[347729948,1736086244059,-500.0,8.493e-05,2]
[347729949,1736086244069,-720.82,8.493e-05,2]
[347729950,1736086244079,-554.43,8.493e-05,2]
[347729951,1736086244089,-500.0,8.493e-05,2]
[347729952,1736086244101,-500.0,8.493e-05,2]
[347729953,1736086244111,-500.0,8.493e-05,2]
[347729954,1736086244121,-500.0,8.493e-05,2]
[347729955,1736086244131,-500.0,8.493e-05,2]
[347729956,1736086244141,-500.0,8.493e-05,2]
[347729957,1736086244151,-558.78,8.493e-05,2]
[347729958,1736086244161,-500.0,8.493e-05,2]
[347729959,1736086244171,-500.0,8.493e-05,2]
[347729960,1736086244182,-892.7,8.493e-05,2]
[347729961,1736086244191,-531.08,8.493e-05,2]
[347729962,1736086244201,-500.0,8.493e-05,2]
[347729963,1736086244211,-500.0,8.493e-05,2]
[347729964,1736086244221,-500.0,8.493e-05,2]
[347729965,1736086244234,-500.0,8.493e-05,2]
[347729966,1736086244244,-500.0,8.493e-05,2]
[347729967,1736086244254,-500.0,8.493e-05,2]
[347729968,1736086244264,-500.0,8.493e-05,2]
[347729969,1736086244275,-640.35070077,8.493e-05,2]
[347729970,1736086244284,-740.92,8.493e-05,2]
[347729971,1736086244294,-2696.37,8.493e-05,2]
[347729972,1736086244306,-500.0,8.493e-05,2]
[347729973,1736086244316,-500.0,8.493e-05,2]
[347729974,1736086244326,-5172.3,8.493e-05,2]
[347729975,1736086244336,-500.0,8.493e-05,2]
[347729976,1736086244347,-306.48574753,8.493e-05,2]
[347729977,1736086244357,-500.0,8.493e-05,2]
[347729978,1736086244367,-500.0,8.493e-05,2]
[347729979,1736086244377,-3610.4,8.493e-05,2]
[347729980,1736086244387,-500.0,8.493e-05,2]
[347729981,1736086244397,-500.0,8.493e-05,2]
[347729982,1736086244407,-1720.92,8.493e-05,2]
[347729983,1736086244417,-500.0,8.493e-05,2]
[347729984,1736086244427,-500.0,8.493e-05,2]
[347729985,1736086244436,-563.17,8.493e-05,2]
[347729986,1736086244446,-500.0,8.493e-05,2]
[347729987,1736086244456,-9470.22,8.493e-05,2]
[347729988,1736086244466,-826.83,8.493e-05,2]
[347729989,1736086244476,-3794.49,8.493e-05,2]
[347729990,1736086244486,-500.0,8.493e-05,2]
[347729991,1736086244495,-6784.81,8.493e-05,2]
[347729992,1736086244505,-500.0,8.493e-05,2]
[347729993,1736086244515,-500.0,8.493e-05,2]
[347729994,1736086244525,-588.06,8.493e-05,2]
[347729995,1736086244536,-500.0,8.493e-05,2]
[347729996,1736086244546,-500.0,8.493e-05,2]
[347729997,1736086244558,-500.0,8.493e-05,2]
[347729998,1736086244568,-500.0,8.493e-05,2]
[347729999,1736086244580,-500.0,8.493e-05,2]